fUSD/lending_fUSD_20250806
["ID","MTS","AMOUNT","RATE_DAILY","PERIOD"]
[377629413,1754466675641,-400.0,0.0003589,14]
[377629414,1754466675651,-1156.25,0.0003589,14]
[377629415,1754466675660,-1918.15,0.0003589,14]
[377629416,1754466675670,-1540.26,0.0003589,14]
[377629417,1754466675680,-672.46,0.0003589,14]
[377629418,1754466675690,-911.16,0.0003589,14]
[377629419,1754466675700,-401.00458912,0.0003589,14]
[377629420,1754466675710,-400.0,0.0003589,14]
[377629421,1754466675720,-421.28547919,0.0003589,14]
[377629422,1754466675729,-400.0,0.0003589,14]
[377629423,1754466675738,-491.9,0.0003589,14]
[377629424,1754466675747,-1797.08,0.0003589,14]
[377629425,1754466675757,-400.0,0.0003589,14]
[377629426,1754466675766,-400.0,0.0003589,14]
[377629427,1754466675776,-400.0,0.0003589,14]
[377629428,1754466675786,-400.0,0.0003589,14]
[377629429,1754466675795,-744.31,0.0003589,14]
[377629430,1754466675804,-2141.43,0.0003589,14]
[377629431,1754466675814,-406.83347487,0.0003589,14]
[377629432,1754466675824,-764.11,0.0003589,14]
[377629433,1754466675833,-1993.4,0.0003589,14]
[377629434,1754466675843,-400.0,0.0003589,14]
[377629435,1754466675853,-1491.36,0.0003589,14]
[377629436,1754466675864,-400.0,0.0003589,14]
[377629437,1754466675873,-400.0,0.0003589,14]
[377629438,1754466675883,-400.0,0.0003589,14]
[377629439,1754466675893,-400.0,0.0003589,14]
[377629440,1754466675904,-400.0,0.0003589,14]
[377629441,1754466675913,-400.0,0.0003589,14]
[377629442,1754466675923,-400.0,0.0003589,14]
[377629443,1754466675933,-968.69,0.0003589,14]
[377629444,1754466675944,-401.26502734,0.0003589,14]
[377629445,1754466675956,-2051.2,0.0003589,14]
[377629446,1754466675965,-400.0,0.0003589,14]
[377629447,1754466675975,-400.0,0.0003589,14]
[377629448,1754466675985,-1016.72,0.0003589,14]
[377629449,1754466675995,-400.0,0.0003589,14]
[377629450,1754466676004,-400.0,0.0003589,14]
[377629451,1754466676013,-400.0,0.0003589,14]
[377629452,1754466676023,-400.0,0.0003589,14]
[377629453,1754466676033,-400.0,0.0003589,14]
[377629454,1754466676042,-400.0,0.0003589,14]
[377629455,1754466676052,-400.0,0.0003589,2]
[377629456,1754466676063,-1195.13,0.0003589,14]
[377629457,1754466676074,-405.78,0.0003589,14]
[377629458,1754466676083,-400.0,0.0003589,14]
[377629459,1754466676095,-400.0,0.0003589,14]
[377629460,1754466676107,-400.0,0.0003589,14]
[377629461,1754466676117,-500.12,0.0003589,14]
[377629462,1754466676128,-1454.61,0.0003589,14]
[377629463,1754466676138,-400.0,0.0003589,14]
[377629464,1754466676149,-400.0,0.0003589,14]
[377629465,1754466676159,-400.0,0.0003589,14]
[377629466,1754466676170,-1559.07,0.0003589,14]
[377629467,1754466676181,-801.86,0.0003589,14]
[377629468,1754466676191,-855.57,0.0003589,14]
[377629469,1754466676202,-1553.66,0.0003589,14]
[377629470,1754466676211,-400.0,0.0003589,14]
[377629471,1754466676221,-400.0,0.0003589,14]
[377629472,1754466676231,-400.0,0.0003589,14]
[377629473,1754466676242,-400.0,0.0003589,14]
[377629474,1754466676253,-400.0,0.0003589,14]
[377629475,1754466676263,-1229.61,0.0003589,14]
[377629476,1754466676273,-1069.85,0.0003589,14]
[377629477,1754466676287,-400.0,0.0003589,14]
[377629478,1754466676297,-400.90146679,0.0003589,14]
[377629479,1754466676307,-1160.09,0.0003589,14]
[377629480,1754466676316,-400.0,0.0003589,14]
[377629481,1754466676326,-431.91,0.0003589,14]
[377629482,1754466676336,-400.0,0.0003589,14]
[377629483,1754466676346,-406.127142,0.0003589,7]
[377629484,1754466676356,-400.0,0.0003589,14]
[377629485,1754466676367,-400.0,0.0003589,14]
[377629486,1754466676377,-400.0,0.0003589,14]
[377629487,1754466676386,-401.26797536,0.0003589,14]
[377629488,1754466676400,-1301.15,0.0003589,14]
[377629489,1754466676409,-556.42,0.0003589,14]
[377629490,1754466676420,-406.127142,0.0003589,7]
[377629491,1754466676430,-400.0,0.0003589,14]
[377629492,1754466676440,-992.76,0.0003589,14]
[377629493,1754466676450,-400.0,0.0003589,14]
[377629494,1754466676461,-956.83,0.0003589,14]
[377629495,1754466676471,-400.0,0.0003589,14]
[377629496,1754466676481,-1056.68,0.0003589,14]
[377629497,1754466676491,-400.0,0.0003589,14]
[377629498,1754466676502,-1859.55,0.0003589,14]
[377629499,1754466676515,-400.0,0.0003589,14]
[377629500,1754466676524,-1656.35,0.0003589,14]
[377629501,1754466676535,-583.61,0.0003589,14]
[377629502,1754466676546,-400.0,0.0003589,14]
[377629503,1754466676555,-400.0,0.0003589,14]
[377629504,1754466676564,-400.0,0.0003589,14]
[377629505,1754466676574,-664.39,0.0003589,14]
[377629506,1754466676583,-402.18814074,0.0003589,14]
[377629507,1754466676593,-788.08,0.0003589,14]
[377629508,1754466676602,-400.0,0.0003589,14]
[377629509,1754466676613,-1796.0,0.0003589,14]
[377629510,1754466676624,-400.0,0.0003589,14]
[377629511,1754466676634,-400.0,0.0003589,14]
[377629512,1754466676645,-400.0,0.0003589,14]
[377629513,1754466676654,-400.0,0.0003589,14]
[377629514,1754466676666,-400.0,0.0003589,14]
[377629515,1754466676676,-641.51,0.0003589,14]
[377629516,1754466676687,-428.02,0.0003589,14]
[377629517,1754466676697,-400.0,0.0003589,14]
[377629518,1754466676706,-1241.22,0.0003589,14]
[377629519,1754466676717,-400.0,0.0003589,14]
[377629520,1754466676728,-1938.44,0.0003589,14]
[377629521,1754466676739,-641.75,0.0003589,14]
[377629522,1754466676751,-2193.87,0.0003589,14]
[377629523,1754466676762,-448.77,0.0003589,14]
[377629524,1754466676772,-400.0,0.0003589,14]
[377629525,1754466676782,-400.0,0.0003589,14]
[377629526,1754466676792,-400.0,0.0003589,14]
[377629527,1754466676802,-400.0,0.0003589,14]
[377629528,1754466676812,-400.0,0.0003589,14]
[377629529,1754466676822,-400.0,0.0003589,14]
[377629530,1754466676831,-400.0,0.0003589,14]
[377629531,1754466676843,-2038.28,0.0003589,14]
[377629532,1754466676854,-1623.42,0.0003589,14]
[377629533,1754466676864,-1017.34,0.0003589,14]
[377629534,1754466676874,-1714.89,0.0003589,14]
[377629535,1754466676884,-1505.15,0.0003589,14]
[377629536,1754466676894,-400.0,0.0003589,14]
[377629537,1754466676904,-1540.92,0.0003589,14]
[377629538,1754466676913,-400.0,0.0003589,14]
[377629539,1754466676923,-400.0,0.0003589,14]
[377629540,1754466676933,-400.0,0.0003589,14]
[377629541,1754466676944,-1233.4,0.0003589,14]
[377629542,1754466676954,-532.24,0.0003589,14]
[377629543,1754466676964,-400.0,0.0003589,14]
[377629544,1754466676974,-400.0,0.0003589,14]
[377629545,1754466676983,-1187.36,0.0003589,14]
[377629546,1754466676992,-407.41982844,0.0003589,14]
[377629547,1754466677002,-400.0,0.0003589,14]
[377629548,1754466677011,-1301.62,0.0003589,14]
[377629549,1754466677021,-400.0,0.0003589,14]
[377629550,1754466677031,-1546.96,0.0003589,14]
[377629551,1754466677041,-2699.76,0.0003589,14]
[377629552,1754466677050,-1421.11,0.0003589,14]
[377629553,1754466677061,-676.94,0.0003589,14]
[377629554,1754466677070,-400.0,0.0003589,14]
[377629555,1754466677080,-400.0,0.0003589,14]
[377629556,1754466677090,-2065.42,0.0003589,14]
[377629557,1754466677100,-1182.55,0.0003589,14]
[377629558,1754466677110,-1730.88,0.0003589,14]
[377629559,1754466677119,-400.0,0.0003589,14]
[377629560,1754466677130,-400.0,0.0003589,14]
[377629561,1754466677139,-808.47,0.0003589,14]
[377629562,1754466677150,-400.0,0.0003589,14]
[377629563,1754466677159,-400.0,0.0003589,14]
[377629564,1754466677169,-510.42,0.0003589,14]
[377629565,1754466677178,-167.53,0.0003589,14]
[377629566,1754466677188,-1395.16,0.0003589,14]
[377629567,1754466677197,-400.0,0.0003589,14]
[377629568,1754466677207,-1731.77,0.0003589,14]
[377629569,1754466677217,-657.94,0.0003589,14]
[377629570,1754466677226,-1006.08,0.0003589,14]
[377629571,1754466677235,-1985.97,0.0003589,14]
[377629572,1754466677244,-400.0,0.0003589,14]
[377629573,1754466677254,-400.0,0.0003589,14]
[377629574,1754466677263,-2021.24,0.0003589,14]
[377629575,1754466677273,-2394.92,0.0003589,14]
[377629576,1754466677285,-400.0,0.0003589,14]
[377629577,1754466677295,-542.45,0.0003589,14]
[377629578,1754466677304,-400.0,0.0003589,14]
[377629579,1754466677314,-770.26,0.0003589,14]
[377629580,1754466677326,-1179.29,0.0003589,14]
[377629581,1754466677336,-400.0,0.0003589,14]
[377629582,1754466677345,-400.0,0.0003589,14]
[377629583,1754466677355,-986.71,0.0003589,14]
[377629584,1754466677368,-424.18,0.0003589,14]
[377629585,1754466677378,-1948.91,0.0003589,14]
[377629586,1754466677387,-1481.8,0.0003589,14]
[377629587,1754466677396,-2337.5,0.0003589,14]
[377629588,1754466677406,-400.0,0.0003589,14]
[377629589,1754466677416,-675.29,0.0003589,14]
[377629590,1754466677425,-400.0,0.0003589,14]
[377629591,1754466677435,-691.38,0.0003589,14]
[377629592,1754466677444,-458.2,0.0003589,14]
[377629593,1754466677454,-400.0,0.0003589,14]
[377629594,1754466677464,-607.88,0.0003589,14]
[377629595,1754466677474,-400.0,0.0003589,14]
[377629596,1754466677483,-400.0,0.0003589,14]
[377629597,1754466677493,-400.0,0.0003589,14]
[377629598,1754466677502,-400.0,0.0003589,14]
[377629599,1754466677512,-400.0,0.0003589,14]
[377629600,1754466677522,-700.93,0.0003589,14]
[377629601,1754466677532,-772.74,0.0003589,14]
[377629602,1754466677542,-400.0,0.0003589,14]
[377629603,1754466677551,-400.0,0.0003589,14]
[377629604,1754466677561,-400.0,0.0003589,14]
[377629605,1754466677572,-2602.35,0.0003589,14]
[377629606,1754466677582,-400.0,0.0003589,14]
[377629607,1754466677592,-810.17,0.0003589,14]
[377629608,1754466677602,-414.5,0.0003589,14]
[377629609,1754466677612,-3298.12,0.0003589,14]
[377629610,1754466677623,-994.56,0.0003589,14]
[377629611,1754466677633,-1280.17,0.0003589,14]
[377629612,1754466677642,-529.32,0.0003589,14]
[377629613,1754466677652,-660.54,0.0003589,14]
[377629614,1754466677662,-400.0,0.0003589,14]
[377629615,1754466677671,-300.96341325,0.0003589,14]
[377629616,1754466677681,-400.0,0.0003589,14]
[377629617,1754466677691,-1636.86,0.0003589,14]
[377629618,1754466677700,-878.54,0.0003589,14]
[377629619,1754466677710,-400.0,0.0003589,14]
[377629620,1754466677719,-1499.49,0.0003589,14]
[377629621,1754466677729,-400.0,0.0003589,14]
[377629622,1754466677738,-400.0,0.0003589,14]
[377629623,1754466677750,-400.0,0.0003589,14]
[377629624,1754466677760,-3437.75,0.0003589,14]
[377629625,1754466677769,-2766.82,0.0003589,14]
[377629626,1754466677779,-2057.06,0.0003589,14]
[377629627,1754466677788,-904.26,0.0003589,14]
[377629628,1754466677798,-2114.54,0.0003589,14]
[377629629,1754466677807,-400.0,0.0003589,14]
[377629630,1754466677817,-2198.26,0.0003589,14]
[377629631,1754466677826,-460.78,0.0003589,14]
[377629632,1754466677836,-692.72,0.0003589,14]
[377629633,1754466677846,-400.0,0.0003589,14]
[377629634,1754466677856,-400.0,0.0003589,14]
[377629635,1754466677865,-400.0,0.0003589,14]
[377629636,1754466677875,-1289.29,0.0003589,14]
[377629637,1754466677885,-400.0,0.0003589,14]
[377629638,1754466677896,-456.94,0.0003589,14]
[377629639,1754466677906,-400.0,0.0003589,14]
[377629640,1754466677916,-400.0,0.0003589,14]
[377629641,1754466678028,-400.0,0.0003589,14]
[377629642,1754466678038,-400.0,0.0003589,14]
[377629643,1754466678048,-400.0,0.0003589,14]
[377629644,1754466678058,-400.0,0.0003589,14]
[377629645,1754466678067,-1830.51,0.0003589,14]
[377629646,1754466678076,-3639.51,0.0003589,14]
[377629647,1754466678085,-1627.97,0.0003589,14]
[377629648,1754466678095,-400.0,0.0003589,14]
[377629649,1754466678104,-400.0,0.0003589,14]
[377629650,1754466678114,-400.0,0.0003589,14]
[377629651,1754466678124,-426.91767596,0.0003589,14]
[377629652,1754466678134,-400.0,0.0003589,14]
[377629653,1754466678143,-400.0,0.0003589,14]
[377629654,1754466678153,-945.14,0.0003589,14]
[377629655,1754466678163,-1009.54,0.0003589,14]
[377629656,1754466678173,-400.0,0.0003589,14]
[377629657,1754466678182,-1537.53,0.0003589,14]
[377629658,1754466678191,-2269.73,0.0003589,14]
[377629659,1754466678202,-1866.75,0.0003589,14]
[377629660,1754466678211,-1914.51,0.0003589,14]
[377629661,1754466678222,-400.0,0.0003589,14]
[377629662,1754466678231,-1852.96,0.0003589,14]
[377629663,1754466678241,-400.0,0.0003589,14]
[377629664,1754466678250,-325.86063753,0.0003589,14]
[377629665,1754466678260,-1544.56,0.0003589,14]
[377629666,1754466678270,-400.0,0.0003589,14]
[377629667,1754466678283,-2193.26,0.0003589,14]
[377629668,1754466678293,-400.0,0.0003589,14]
[377629669,1754466678303,-400.0,0.0003589,14]
[377629670,1754466678312,-1501.18,0.0003589,14]
[377629671,1754466678323,-400.0,0.0003589,14]
[377629672,1754466678332,-400.0,0.0003589,14]
[377629673,1754466678342,-534.74,0.0003589,14]
[377629674,1754466678352,-409.49,0.0003589,14]
[377629675,1754466678364,-1908.95,0.0003589,14]
[377629676,1754466678374,-1589.42,0.0003589,14]
[377629677,1754466678384,-151.0,0.0003589,7]
[377629678,1754466678394,-400.0,0.0003589,14]
[377629679,1754466678404,-400.0,0.0003589,14]
[377629680,1754466678415,-400.0,0.0003589,14]
[377629681,1754466678424,-400.0,0.0003589,14]
[377629682,1754466678434,-1685.84,0.0003589,14]
[377629683,1754466678444,-400.0,0.0003589,14]
[377629684,1754466678464,-400.0,0.0003589,14]
[377629685,1754466678474,-400.0,0.0003589,14]
[377629686,1754466678483,-400.0,0.0003589,14]
[377629687,1754466678493,-908.11,0.0003589,14]
[377629688,1754466678503,-426.1,0.0003589,14]
[377629689,1754466678514,-400.0,0.0003589,14]
[377629690,1754466678524,-2893.14,0.0003589,14]
[377629691,1754466678533,-625.43,0.0003589,14]
[377629692,1754466678543,-400.0,0.0003589,14]
[377629693,1754466678553,-787.11,0.0003589,14]
[377629694,1754466678563,-400.0,0.0003589,14]
[377629695,1754466678572,-6078.0,0.0003589,14]
[377629696,1754466678582,-1850.1,0.0003589,14]
[377629697,1754466678592,-1465.45783983,0.0003589,14]
[377629698,1754466679709,-793.77216017,0.0003589,14]
[377629699,1754466679719,-68.08506509,0.0003589,14]
[377629700,1754466679731,-588.17493491,0.0003589,14]
[377629701,1754466679740,-1192.83,0.0003589,14]
[377629702,1754466679750,-361.65568529,0.0003589,14]
[377629703,1754466679778,-490.4088,0.0003589,14]
[377629704,1754466679790,-98.16551471,0.0003589,14]
[377629705,1754466679800,-1315.43,0.0003589,14]
[377629706,1754466679809,-1064.48,0.0003589,14]
[377629707,1754466679819,-400.0,0.0003589,14]
[377629708,1754466679829,-1778.87,0.0003589,14]
[377629709,1754466679839,-1173.06,0.0003589,14]
[377629710,1754466679848,-851.23,0.0003589,14]
[377629711,1754466679858,-1818.47,0.0003589,14]
[377629712,1754466679867,-1911.78,0.0003589,14]
[377629713,1754466679877,-2427.07,0.0003589,14]
[377629714,1754466679887,-400.0,0.0003589,14]
[377629715,1754466679896,-2909.01,0.0003589,14]
[377629716,1754466679905,-2090.74822795,0.0003589,14]
[377629717,1754466680056,-150.0,0.00030823,3]
[377629718,1754466680066,-300.0,0.00033063,3]
[377629719,1754466680075,-460.36906848,0.00035616,14]
[377629720,1754466680087,-1141.69093152,0.00035616,14]
[377629721,1754466680097,-745.38177205,0.0003589,14]
[377629722,1754466680106,-400.0,0.0003589,14]
[377629723,1754466680116,-400.0,0.0003589,14]
[377629724,1754466680126,-700.33,0.0003589,14]
[377629725,1754466680135,-8.70113931,0.0003589,14]
[377629726,1754466680153,-402.19,0.00035616,14]
[377629727,1754466680163,-391.29886069,0.0003589,14]
[377629728,1754466680172,-258.9,0.0003589,14]
[377629729,1754466680182,-400.0,0.0003589,14]
[377629730,1754466680191,-151.0,0.0003589,7]
[377629731,1754466680201,-400.0,0.0003589,14]
[377629732,1754466680210,-400.0,0.0003589,14]
[377629733,1754466680220,-400.0,0.0003589,14]
[377629734,1754466680230,-481.24,0.0003589,14]
[377629735,1754466680239,-858.32,0.0003589,14]
[377629736,1754466680249,-400.0,0.0003589,14]
[377629737,1754466680258,-400.0,0.0003589,14]
[377629738,1754466680267,-400.0,0.0003589,14]
[377629739,1754466680276,-261.55113931,0.0003589,14]
[377629740,1754466681018,-150.0,0.00035129,3]
[377629741,1754466681028,-219.223841,0.00035616,7]
[377629742,1754466681038,-1944.18,0.00035616,14]
[377629743,1754466681052,-1059.4414534,0.00035616,14]
[377629744,1754466681065,-547.46996351,0.00035616,14]
[377629745,1754466681143,-150.0,0.00035463,2]
[377629746,1754466681152,-506.90858309,0.00035616,14]
[377629747,1754466681162,-354.65824937,0.00035616,14]
[377629748,1754466683487,-150.0,0.00035096,2]
[377629749,1754466683497,-150.0,0.00035138,2]
[377629750,1754466683507,-150.0,0.00035157,2]
[377629751,1754466683516,-138.0,0.00035158,2]
[377629752,1754466683551,-12.0,0.00035158,2]
[377629753,1754466683560,-150.0,0.0003525,2]
[377629754,1754466683569,-150.0,0.00035272,2]
[377629755,1754466683579,-82.62131669,0.00035393,2]
[377629756,1754466683605,-150.0,0.00035312,2]
[377629757,1754466683614,-67.37868331,0.00035393,2]
[377629758,1754466683624,-150.0,0.00035469,2]
[377629759,1754466683632,-150.0,0.00035473,2]
[377629760,1754466683642,-203.0,0.00035482,2]
[377629761,1754466683651,-150.0,0.00035505,2]
[377629762,1754466683660,-129.62131669,0.00035569,2]
[377629763,1754466684998,-727.08233004,0.00033998,14]
[377629764,1754466685012,-573.23766996,0.00033998,14]
[377629765,1754466685021,-602.64617024,0.00033998,14]
[377629768,1754466711669,154.76,0.00013699,2]
[377629987,1754467746995,155.95,0.00013699,2]
[377629988,1754467784781,-500.0,0.000247,2]
[377629989,1754467784808,-151.0,0.00025918,2]
[377629990,1754467784835,-155.95,0.00027397,2]
[377629991,1754467784864,-151.0,0.00027578,2]
[377629992,1754467784891,-449.33,0.00027961,2]
[377629993,1754467784917,-151.0,0.00029239,2]
[377629994,1754467784942,-449.33,0.00029692,2]
[377629995,1754467784970,-151.0,0.00030899,3]
[377629996,1754467784996,-449.33,0.00031422,2]
[377629997,1754467785261,92.06,0.00028078,3]
[377630006,1754467832319,-57.94,0.00028078,3]
[377630007,1754467832329,-300.0,0.00030318,3]
[377630008,1754467832338,-131.50527179,0.00031964,2]
[377630009,1754467832400,-18.49472821,0.00031964,2]
[377630010,1754467832410,-409.05378562,0.0003215,2]
[377630011,1754467832420,-250.0,0.0003229,2]
[377630012,1754467832431,-39.06235117,0.00032293,3]
[377630013,1754467832442,-626.93764883,0.00032293,3]
[377630014,1754467832452,-170.13,0.00032299,2]
[377630015,1754467832463,-1601.177338,0.00032326,2]
[377630016,1754467832473,-479.75443992,0.00032336,2]
[377630017,1754467832483,-150.0,0.00032351,4]
[377630018,1754467832492,-150.0,0.00032351,4]
[377630019,1754467832502,-150.0,0.00032351,4]
[377630020,1754467832511,-150.00000001,0.00032351,4]
[377630021,1754467832521,-150.0,0.00032351,4]
[377630022,1754467832531,-150.0,0.00032351,4]
[377630023,1754467832541,-238.91666066,0.00032351,4]
[377630024,1754467832550,-150.00000001,0.00032351,4]
[377630025,1754467832560,-150.0,0.00032351,4]
[377630026,1754467832570,-150.0,0.00032351,4]
[377630027,1754467832580,-150.0,0.00032351,4]
[377630028,1754467832589,-150.16869713,0.00032351,4]
[377630029,1754467832599,-150.0,0.00032351,4]
[377630030,1754467832610,-150.0,0.00032351,4]
[377630031,1754467832619,-150.0,0.00032351,4]
[377630032,1754467832629,-285.41670197,0.00032351,4]
[377630033,1754467832641,-512.0,0.00032482,2]
[377630034,1754467832651,-818.70630444,0.00032484,2]
[377630035,1754467832661,-198.29,0.00032502,2]
[377630036,1754467832671,-550.45509423,0.00032523,2]
[377630037,1754467832680,-151.0,0.00032559,4]
[377630038,1754467832690,-1171.09491014,0.00032656,2]
[377630042,1754467832790,-514.61217,0.00032656,2]
[377630059,1754467832929,-150.0,0.00028578,3]
[377630061,1754467832941,-446.35286518,0.00032656,2]
[377630063,1754467832952,-1300.70966761,0.00032656,2]
[377630065,1754467832964,-2190.83748651,0.00032656,2]
[377630067,1754467832976,-602.56876027,0.00032656,2]
[377630068,1754467832989,-251.54450538,0.00032656,2]
[377630082,1754467838153,-300.0,0.00030818,3]
[377630084,1754467838163,-1095.07642726,0.00032656,2]
[377630085,1754467838174,-1338.38219396,0.00032656,2]
[377630086,1754467838502,-150.0,0.00031318,3]
[377630087,1754467838512,-2153.91876962,0.00032656,2]
[377630088,1754467838525,-495.16103179,0.00032656,2]
[377630579,1754467843499,-1054.95801165,0.00032656,2]
[377630605,1754467843741,-237.25492353,0.00032656,2]
[377630607,1754467843752,-991.52195605,0.00032656,2]
[377630609,1754467843763,-4598.71664319,0.00032656,2]
[377630923,1754467847139,-5457.28967786,0.00032656,2]
[377630925,1754467847150,-621.15574853,0.00032709,2]
[377630927,1754467847161,-198.29,0.00032827,2]
[377630930,1754467847171,-691.85640283,0.00032896,2]
[377630932,1754467847181,-167.1,0.00032953,2]
[377630934,1754467847191,-500.0,0.00032955,2]
[377630936,1754467847201,-762.55705714,0.00033082,2]
[377630938,1754467847211,-234.12,0.00033139,2]
[377630940,1754467847221,-449.33,0.00033152,2]
[377630942,1754467847232,-150.0,0.00033156,3]
[377630944,1754467847243,-296.42,0.00033161,2]
[377630946,1754467847253,-2910.88111364,0.00033168,2]
[377630948,1754467847265,-152.70884756,0.00033168,2]
[377630950,1754467847276,-588.2140096,0.00033268,2]
[377630955,1754467847317,-245.04370184,0.00033268,2]
[377630958,1754467847329,-903.95836575,0.00033455,2]
[377630960,1754467847339,-200.0,0.00033464,2]
[377630962,1754467847351,-175.0,0.00033556,7]
[377630964,1754467847361,-300.0,0.00033558,3]
[377630966,1754467847372,-429.86873588,0.00033589,2]
[377631312,1754468041690,1000.0,0.0002706,120]
[377631316,1754468227648,150.28866357,0.0003,120]
[377631325,1754468499547,279.20740582,0.0003013,120]
[377631326,1754468666518,1317.14677,0.0003,120]
[377631328,1754468672703,158.47,0.00013699,2]
[377631330,1754468747485,794.67745756,0.0001995,15]
[377631331,1754468754814,296.34609608,0.00015,10]
[377631333,1754468841635,1431.05889339,0.0002,5]
[377631335,1754468856810,-9992.31088601,0.00018889,2]
[377631336,1754468856833,-300.0,0.00018998,2]
[377631337,1754468856855,-500.0,0.00018999,2]
[377631338,1754468856878,-483.1217152,0.00018999,2]
[377631339,1754468856901,-1724.56739879,0.00019,2]
[377631340,1754468882172,1000.0,0.00019854,4]
[377631341,1754468904146,12098.33144594,0.00012,30]
[377631342,1754468916686,521.91974607,0.0002,7]
[377631343,1754468923293,524.81636484,0.0001421,7]
[377631351,1754469032657,-300.0,0.00018999,2]
[377631352,1754469032671,-1950.28651878,0.00019,2]
[377631353,1754469032722,-4006.3357386,0.00019,2]
[377631369,1754469033120,-68317.79979761,0.00019,2]
[377631370,1754469033157,-40728.20020239,0.00019,2]
[377631372,1754469038281,-918.9117594,0.00019,2]
[377631373,1754469038361,-2964.69532276,0.00019,2]
[377631374,1754469038372,-7553.36819763,0.00019,2]
[377631375,1754469038575,-8984.62984678,0.00019,2]
[377631535,1754469041396,-686.52515359,0.00019,2]
[377631536,1754469041408,-1710.48985347,0.00019,2]
[377631537,1754469041420,-2851.72304576,0.00019,2]
[377631538,1754469041447,-747.65135216,0.00019,2]
[377631539,1754469041470,-1812.41338864,0.00019,2]
[377631540,1754469041481,-1318.6013205,0.00019,2]
[377631541,1754469041493,-493.1206649,0.00019,2]
[377631542,1754469041520,-31542.80016075,0.00019,2]
[377631543,1754469041530,-1000.0,0.000209,4]
[377631544,1754469041539,-236.82449203,0.000219,3]
[377631545,1754469041549,-2304.16450322,0.00022,4]
[377631546,1754469041559,-1000.0,0.00022042,4]
[377631547,1754469041569,-5000.00005535,0.00024,5]
[377631548,1754469041578,-154.58080982,0.000245,2]
[377631549,1754469041589,-407.7368,0.000246,2]
[377631550,1754469041599,-191.96,0.00024882,2]
[377631551,1754469041608,-412.33,0.00025573,2]
[377631552,1754469041618,-169.1,0.00026045,2]
[377631553,1754469041628,-412.33,0.00027303,2]
[377631554,1754469041639,-965.0969211,0.00027336,2]
[377631555,1754469041648,-1019.569999,0.0002739,2]
[377631556,1754469041658,-412.33,0.00029033,2]
[377631557,1754469041669,-158.47,0.0002911,2]
[377631558,1754469041679,-150.0,0.00030078,2]
[377631559,1754469041688,-150.0,0.00030161,2]
[377631560,1754469041698,-58.71554804,0.0003019,2]
[377631561,1754469041745,-91.28445196,0.0003019,2]
[377631562,1754469041755,-950.98832755,0.00030655,2]
[377631566,1754469043340,-150.0,0.00029533,3]
[377631567,1754469043349,-200.56935873,0.00030655,2]
[377631568,1754469043497,-1363.61487383,0.00030655,2]
[377631569,1754469043506,-150.0,0.00030724,2]
[377631570,1754469043516,-150.0,0.00030754,2]
[377631571,1754469043525,-224.38512617,0.00030764,2]
[377631572,1754469043558,-187.94487383,0.00030764,2]
[377631573,1754469043570,-150.0,0.00030806,2]
[377631574,1754469043580,-7.05512617,0.00030842,2]
[377631575,1754469043663,-142.94487383,0.00030842,2]
[377631576,1754469043672,-150.0,0.00030851,2]